lending/lending_fUSD_20251022
["ID","MTS","AMOUNT","RATE_DAILY","PERIOD"]
[392079421,1761137476530,-913.64,0.00046849,2]
[392079422,1761137476539,-500.0,0.00046849,120]
[392079423,1761137476549,-788.16,0.00046849,120]
[392079424,1761137476558,-196.08470925,0.00046849,120]
[392079425,1761137476567,-572.17,0.00046849,120]
[392079426,1761137476577,-1172.27,0.00046849,120]
[392079427,1761137476586,-822.33,0.00046849,120]
[392079428,1761137476595,-940.37,0.00046849,120]
[392079429,1761137476605,-500.0,0.00046849,120]
[392079430,1761137476614,-1208.24,0.00046849,120]
[392079431,1761137476623,-647.81,0.00046849,120]
[392079432,1761137476633,-903.67,0.00046849,120]
[392079433,1761137476642,-701.38,0.00046849,120]
[392079434,1761137476652,-500.0,0.00046849,120]
[392079435,1761137476662,-726.04,0.00046849,120]
[392079436,1761137476671,-1257.65,0.00046849,120]
[392079437,1761137476681,-1171.07,0.00046849,120]
[392079438,1761137476690,-966.41,0.00046849,120]
[392079439,1761137476699,-500.0,0.00046849,120]
[392079440,1761137476710,-838.16,0.00046849,120]
[392079441,1761137476719,-793.36,0.00046849,120]
[392079442,1761137476728,-650.24,0.00046849,120]
[392079443,1761137476738,-739.64,0.00046849,120]
[392079444,1761137476747,-1537.31,0.00046849,120]
[392079445,1761137476757,-500.0,0.00046849,120]
[392079446,1761137476767,-583.30042479,0.00046849,120]
[392079447,1761137476780,-1957.66,0.00046849,120]
[392079448,1761137476790,-500.0,0.00046849,120]
[392079449,1761137476800,-728.44,0.00046849,120]
[392079450,1761137476809,-500.0,0.00046849,120]
[392079451,1761137476819,-1020.65,0.00046849,120]
[392079452,1761137476828,-500.0,0.00046849,120]
[392079453,1761137476837,-500.0,0.00046849,120]
[392079454,1761137476846,-500.0,0.00046849,120]
[392079455,1761137476857,-205.35718297,0.00046849,120]
[392079456,1761137476866,-500.0,0.00046849,120]
[392079457,1761137476876,-1283.72,0.00046849,120]
[392079458,1761137476887,-507.24,0.00046849,120]
[392079459,1761137476896,-1791.81,0.00046849,120]
[392079460,1761137476905,-516.69,0.00046849,120]
[392079461,1761137476915,-1704.96,0.00046849,120]
[392079462,1761137476925,-774.46,0.00046849,120]
[392079463,1761137476934,-684.88,0.00046849,120]
[392079464,1761137476943,-903.57,0.00046849,120]
[392079465,1761137476953,-500.0,0.00046849,120]
[392079466,1761137476962,-433.53056434,0.00046849,120]
[392079467,1761137476971,-500.0,0.00046849,120]
[392079468,1761137476981,-500.08,0.00046849,120]
[392079469,1761137476992,-500.0,0.00046849,120]
[392079470,1761137477002,-976.02,0.00046849,120]
[392079471,1761137477011,-1123.28,0.00046849,120]
[392079472,1761137477020,-791.42,0.00046849,120]
[392079473,1761137477030,-1380.66,0.00046849,120]
[392079474,1761137477040,-500.0,0.00046849,120]
[392079475,1761137477050,-777.97,0.00046849,120]
[392079476,1761137477059,-1069.18,0.00046849,120]
[392079477,1761137477068,-550.13,0.00046849,120]
[392079478,1761137477078,-500.0,0.00046849,120]
[392079479,1761137477087,-657.62,0.00046849,120]
[392079480,1761137477096,-189.05705355,0.00046849,120]
[392079481,1761137477105,-741.11,0.00046849,120]
[392079482,1761137477115,-546.69,0.00046849,120]
[392079483,1761137477125,-868.99,0.00046849,120]
[392079484,1761137477134,-749.46,0.00046849,120]
[392079485,1761137477143,-500.0,0.00046849,120]
[392079486,1761137477152,-1632.62,0.00046849,120]
[392079487,1761137477162,-1268.92,0.00046849,120]
[392079488,1761137477171,-1515.76,0.00046849,120]
[392079489,1761137477180,-500.0,0.00046849,120]
[392079490,1761137477190,-500.0,0.00046849,120]
[392079491,1761137477200,-1021.54,0.00046849,120]
[392079492,1761137477209,-500.0,0.00046849,120]
[392079493,1761137477219,-417.78101719,0.00046864,28]
[392079494,1761137477228,-188.99,0.000469,23]
[392079495,1761137477237,-251.23240262,0.00046942,120]
[392079496,1761137477247,-1000000.0,0.00047,120]
[392079497,1761137477256,-1999.0,0.00047112,120]
[392079498,1761137477265,-683.25,0.00047123,120]
[392079499,1761137477274,-668.65,0.00047123,60]
[392079500,1761137477283,-500.0,0.00047123,120]
[392079501,1761137477293,-504.28,0.00047123,120]
[392079502,1761137477302,-500.0,0.00047123,120]
[392079503,1761137477311,-678.16,0.00047123,120]
[392079504,1761137477321,-953.82,0.00047123,120]
[392079505,1761137477342,-1131.8,0.00047123,120]
[392079506,1761137477352,-538.28,0.00047123,120]
[392079507,1761137477361,-500.0,0.00047123,120]
[392079508,1761137477371,-1212.18,0.00047123,120]
[392079509,1761137477381,-971.57,0.00047123,120]
[392079510,1761137477390,-500.0,0.00047123,120]
[392079511,1761137477400,-500.0,0.00047123,120]
[392079512,1761137477409,-506.07,0.00047123,120]
[392079513,1761137477419,-500.0,0.00047123,120]
[392079514,1761137477429,-500.0,0.00047123,120]
[392079515,1761137477438,-500.0,0.00047123,120]
[392079516,1761137477447,-787.36,0.00047123,120]
[392079517,1761137477457,-654.91,0.00047123,120]
[392079518,1761137477467,-609.54,0.00047123,120]
[392079519,1761137477477,-1546.84,0.00047123,120]
[392079520,1761137477487,-512.22,0.00047123,120]
[392079521,1761137477497,-500.0,0.00047123,120]
[392079522,1761137477508,-584.83,0.00047123,120]
[392079523,1761137477518,-300.0,0.00047123,120]
[392079524,1761137477528,-500.0,0.00047123,12]
[392079525,1761137477537,-500.0,0.00047123,120]
[392079526,1761137477547,-500.0,0.00047123,120]
[392079527,1761137477557,-537.03,0.00047123,120]
[392079528,1761137477567,-500.0,0.00047123,120]
[392079529,1761137477579,-1006.19,0.00047123,120]
[392079530,1761137477588,-500.0,0.00047123,120]
[392079531,1761137477599,-768.78,0.00047123,120]
[392079532,1761137477609,-515.05,0.00047123,120]
[392079533,1761137477618,-888.55,0.00047123,120]
[392079534,1761137477627,-1783.82,0.00047123,120]
[392079535,1761137477637,-1004.91,0.00047123,120]
[392079536,1761137477646,-902.56,0.00047123,120]
[392079537,1761137477656,-500.0,0.00047123,120]
[392079538,1761137477665,-797.64,0.00047123,120]
[392079539,1761137477675,-727.22,0.00047123,120]
[392079540,1761137477688,-500.0,0.00047123,120]
[392079541,1761137477697,-500.0,0.00047123,120]
[392079542,1761137477707,-596.43,0.00047123,30]
[392079543,1761137477717,-839.78,0.00047123,120]
[392079544,1761137477727,-1567.44,0.00047123,120]
[392079545,1761137477737,-978.8,0.00047123,120]
[392079546,1761137477748,-550.93,0.00047123,120]
[392079547,1761137477758,-1200.44,0.00047123,120]
[392079548,1761137477770,-804.93,0.00047123,120]
[392079549,1761137477782,-739.04,0.00047123,120]
[392079550,1761137477793,-500.0,0.00047123,120]
[392079551,1761137477803,-771.06,0.00047123,120]
[392079552,1761137477813,-794.03,0.00047123,120]
[392079553,1761137477823,-1137.8,0.00047123,120]
[392079554,1761137477833,-935.82,0.00047123,120]
[392079555,1761137477843,-835.83,0.00047123,120]
[392079556,1761137477853,-1199.67,0.00047123,120]
[392079557,1761137477863,-696.26,0.00047123,120]
[392079558,1761137477873,-652.36,0.00047123,120]
[392079559,1761137477886,-1077.51,0.00047123,120]
[392079560,1761137477896,-1098.31,0.00047123,120]
[392079561,1761137477906,-866.75,0.00047123,120]
[392079562,1761137477916,-500.0,0.00047123,120]
[392079563,1761137477926,-899.21,0.00047123,120]
[392079564,1761137477936,-683.69,0.00047123,120]
[392079565,1761137477946,-901.18,0.00047123,120]
[392079566,1761137477956,-1139.36,0.00047123,120]
[392079567,1761137477970,-978.62,0.00047123,120]
[392079568,1761137477980,-500.0,0.00047123,120]
[392079569,1761137477989,-503.85,0.00047123,120]
[392079570,1761137478000,-1709.15,0.00047123,120]
[392079571,1761137478010,-286.79319293,0.00047123,120]
[392079572,1761137478019,-1255.83,0.00047123,120]
[392079573,1761137478029,-598.97,0.00047123,120]
[392079574,1761137478043,-500.0,0.00047123,120]
[392079575,1761137478053,-500.0,0.00047123,120]
[392079576,1761137478063,-500.0,0.00047123,120]
[392079577,1761137478072,-500.0,0.00047123,120]
[392079578,1761137478082,-913.64,0.00047123,2]
[392079579,1761137478095,-500.0,0.00047123,120]
[392079580,1761137478105,-788.16,0.00047123,120]
[392079581,1761137478115,-572.17,0.00047123,120]
[392079582,1761137478125,-1172.27,0.00047123,120]
[392079583,1761137478135,-822.33,0.00047123,120]
[392079584,1761137478145,-940.37,0.00047123,120]
[392079585,1761137478155,-500.0,0.00047123,120]
[392079586,1761137478165,-1208.24,0.00047123,120]
[392079587,1761137478175,-647.81,0.00047123,120]
[392079588,1761137478185,-903.67,0.00047123,120]
[392079589,1761137478195,-701.38,0.00047123,120]
[392079590,1761137478205,-615.70642401,0.00047123,120]
[392079591,1761137478221,-726.04,0.00047123,120]
[392079592,1761137478231,-1257.65,0.00047123,120]
[392079593,1761137478242,-1171.07,0.00047123,120]
[392079594,1761137478252,-966.41,0.00047123,120]
[392079595,1761137478263,-500.0,0.00047123,120]
[392079596,1761137478273,-838.16,0.00047123,120]
[392079597,1761137478283,-793.36,0.00047123,120]
[392079598,1761137478298,-650.24,0.00047123,120]
[392079599,1761137478309,-739.64,0.00047123,120]
[392079600,1761137478319,-1537.31,0.00047123,120]
[392079601,1761137478330,-500.0,0.00047123,120]
[392079602,1761137478340,-1957.66,0.00047123,120]
[392079603,1761137478350,-500.0,0.00047123,120]
[392079604,1761137478360,-728.44,0.00047123,120]
[392079605,1761137478370,-500.0,0.00047123,120]
[392079606,1761137478380,-1020.65,0.00047123,120]
[392079607,1761137478391,-500.0,0.00047123,120]
[392079608,1761137478401,-500.0,0.00047123,120]
[392079609,1761137478411,-500.0,0.00047123,120]
[392079610,1761137478422,-500.0,0.00047123,120]
[392079611,1761137478432,-1283.72,0.00047123,120]
[392079612,1761137478443,-507.24,0.00047123,120]
[392079613,1761137478453,-1791.81,0.00047123,120]
[392079614,1761137478465,-516.69,0.00047123,120]
[392079615,1761137478475,-1704.96,0.00047123,120]
[392079616,1761137478485,-774.46,0.00047123,120]
[392079617,1761137478495,-684.88,0.00047123,120]
[392079618,1761137478506,-903.57,0.00047123,120]
[392079619,1761137478517,-500.0,0.00047123,120]
[392079620,1761137478527,-500.0,0.00047123,120]
[392079621,1761137478538,-500.08,0.00047123,120]
[392079622,1761137478548,-500.0,0.00047123,120]
[392079623,1761137478558,-976.02,0.00047123,120]
[392079624,1761137478568,-1123.28,0.00047123,120]
[392079625,1761137478578,-791.42,0.00047123,120]
[392079626,1761137478589,-1380.66,0.00047123,120]
[392079627,1761137478600,-500.0,0.00047123,120]
[392079628,1761137478610,-777.97,0.00047123,120]
[392079629,1761137478621,-1069.18,0.00047123,120]
[392079630,1761137478631,-550.13,0.00047123,120]
[392079631,1761137478642,-224.36886972,0.00047123,120]
[392079632,1761137478651,-657.62,0.00047123,120]
[392079633,1761137478666,-741.11,0.00047123,120]
[392079634,1761137478676,-546.69,0.00047123,120]
[392079635,1761137478686,-868.99,0.00047123,120]
[392079636,1761137478696,-749.46,0.00047123,120]
[392079637,1761137478706,-1632.62,0.00047123,120]
[392079638,1761137478717,-1268.92,0.00047123,120]
[392079639,1761137478727,-1515.76,0.00047123,120]
[392079640,1761137478737,-500.0,0.00047123,120]
[392079641,1761137478749,-500.0,0.00047123,120]
[392079642,1761137478759,-1021.54,0.00047123,120]
[392079643,1761137478769,-500.0,0.00047123,120]
[392079644,1761137478782,-683.25,0.00047397,120]
[392079645,1761137478794,-668.65,0.00047397,60]
[392079646,1761137478804,-500.0,0.00047397,120]
[392079647,1761137478813,-504.28,0.00047397,120]
[392079648,1761137478823,-500.0,0.00047397,120]
[392079649,1761137478833,-678.16,0.00047397,120]
[392079650,1761137478843,-953.82,0.00047397,120]
[392079651,1761137478854,-1131.8,0.00047397,120]
[392079652,1761137478867,-538.28,0.00047397,120]
[392079653,1761137478879,-500.0,0.00047397,120]
[392079654,1761137478890,-1212.18,0.00047397,120]
[392079655,1761137478901,-971.57,0.00047397,120]
[392079656,1761137478913,-500.0,0.00047397,120]
[392079657,1761137478924,-500.0,0.00047397,120]
[392079658,1761137478934,-506.07,0.00047397,120]
[392079659,1761137478943,-500.0,0.00047397,120]
[392079660,1761137478953,-500.0,0.00047397,120]
[392079661,1761137478966,-500.0,0.00047397,120]
[392079662,1761137478979,-787.36,0.00047397,120]
[392079663,1761137478989,-654.91,0.00047397,120]
[392079664,1761137478998,-609.54,0.00047397,120]
[392079665,1761137479008,-1546.84,0.00047397,120]
[392079666,1761137479017,-512.22,0.00047397,120]
[392079667,1761137479029,-500.0,0.00047397,120]
[392079668,1761137479039,-584.83,0.00047397,120]
[392079669,1761137479049,-300.0,0.00047397,120]
[392079670,1761137479058,-500.0,0.00047397,12]
[392079671,1761137479068,-500.0,0.00047397,120]
[392079672,1761137479077,-500.0,0.00047397,120]
[392079673,1761137479087,-537.03,0.00047397,120]
[392079674,1761137479097,-500.0,0.00047397,120]
[392079675,1761137479106,-1006.19,0.00047397,120]
[392079676,1761137479116,-500.0,0.00047397,120]
[392079677,1761137479126,-768.78,0.00047397,120]
[392079678,1761137479135,-515.05,0.00047397,120]
[392079679,1761137479146,-888.55,0.00047397,120]
[392079680,1761137479155,-1783.82,0.00047397,120]
[392079681,1761137479164,-1004.91,0.00047397,120]
[392079682,1761137479173,-902.56,0.00047397,120]
[392079683,1761137479183,-500.0,0.00047397,120]
[392079684,1761137479193,-797.64,0.00047397,120]
[392079685,1761137479409,-727.22,0.00047397,120]
[392079686,1761137479420,-500.0,0.00047397,120]
[392079687,1761137479430,-500.0,0.00047397,120]
[392079688,1761137479440,-596.43,0.00047397,30]
[392079689,1761137479450,-839.78,0.00047397,120]
[392079690,1761137479460,-1567.44,0.00047397,120]
[392079691,1761137479471,-978.8,0.00047397,120]
[392079692,1761137479481,-550.93,0.00047397,120]
[392079693,1761137479492,-1200.44,0.00047397,120]
[392079694,1761137479501,-804.93,0.00047397,120]
[392079695,1761137479511,-739.04,0.00047397,120]
[392079696,1761137479521,-496.32619417,0.00047397,120]
[392079697,1761137479534,-771.06,0.00047397,120]
[392079698,1761137479544,-794.03,0.00047397,120]
[392079699,1761137479554,-1137.8,0.00047397,120]
[392079700,1761137479564,-935.82,0.00047397,120]
[392079701,1761137479574,-835.83,0.00047397,120]
[392079702,1761137479583,-1199.67,0.00047397,120]
[392079703,1761137479593,-696.26,0.00047397,120]
[392079704,1761137479602,-652.36,0.00047397,120]
[392079705,1761137479612,-1077.51,0.00047397,120]
[392079706,1761137479622,-1098.31,0.00047397,120]
[392079707,1761137479632,-866.75,0.00047397,120]
[392079708,1761137479642,-500.0,0.00047397,120]
[392079709,1761137479651,-899.21,0.00047397,120]
[392079710,1761137479662,-683.69,0.00047397,120]
[392079711,1761137479673,-901.18,0.00047397,120]
[392079712,1761137479685,-1139.36,0.00047397,120]
[392079713,1761137479696,-978.62,0.00047397,120]
[392079714,1761137479707,-587.70688208,0.00047397,120]
[392079715,1761137479719,-503.85,0.00047397,120]
[392079716,1761137479732,-1709.15,0.00047397,120]
[392079717,1761137479742,-1255.83,0.00047397,120]
[392079718,1761137479753,-598.97,0.00047397,120]
[392079719,1761137479764,-450.98122417,0.00047397,120]
[392079720,1761137479774,-500.0,0.00047397,120]
[392079721,1761137479787,-500.0,0.00047397,120]
[392079722,1761137479798,-500.0,0.00047397,120]
[392079723,1761137479809,-913.64,0.00047397,2]
[392079724,1761137479820,-500.0,0.00047397,120]
[392079725,1761137479831,-788.16,0.00047397,120]
[392079726,1761137479840,-572.17,0.00047397,120]
[392079727,1761137479851,-1172.27,0.00047397,120]
[392079728,1761137479862,-822.33,0.00047397,120]
[392079729,1761137479872,-940.37,0.00047397,120]
[392079730,1761137479881,-516.45408576,0.00047397,120]
[392079731,1761137479891,-1208.24,0.00047397,120]
[392079732,1761137479900,-647.81,0.00047397,120]
[392079733,1761137479910,-903.67,0.00047397,120]
[392079734,1761137479920,-701.38,0.00047397,120]
[392079735,1761137479933,-726.04,0.00047397,120]
[392079736,1761137479947,-1257.65,0.00047397,120]
[392079737,1761137479957,-1171.07,0.00047397,120]
[392079738,1761137479968,-966.41,0.00047397,120]
[392079739,1761137479978,-500.0,0.00047397,120]
[392079740,1761137479987,-838.16,0.00047397,120]
[392079741,1761137479998,-793.36,0.00047397,120]
[392079742,1761137480008,-650.24,0.00047397,120]
[392079743,1761137480020,-739.64,0.00047397,120]
[392079744,1761137480031,-1537.31,0.00047397,120]
[392079745,1761137480040,-500.0,0.00047397,120]
[392079746,1761137480051,-1957.66,0.00047397,120]
[392079747,1761137480061,-500.0,0.00047397,120]
[392079748,1761137480072,-728.44,0.00047397,120]
[392079749,1761137480083,-500.0,0.00047397,120]
[392079750,1761137480095,-1020.65,0.00047397,120]
[392079751,1761137480113,-500.0,0.00047397,120]
[392079752,1761137480123,-500.0,0.00047397,120]
[392079753,1761137480136,-500.0,0.00047397,120]
[392079754,1761137480146,-500.0,0.00047397,120]
[392079755,1761137480156,-1283.72,0.00047397,120]
[392079756,1761137480168,-507.24,0.00047397,120]
[392079757,1761137480179,-1791.81,0.00047397,120]
[392079758,1761137480189,-516.69,0.00047397,120]
[392079759,1761137480200,-774.46,0.00047397,120]
[392079760,1761137480211,-1704.96,0.00047397,120]
[392079761,1761137480221,-684.88,0.00047397,120]
[392079762,1761137480231,-903.57,0.00047397,120]
[392079763,1761137480240,-511.86821554,0.00047397,120]
[392079764,1761137480251,-356.33925992,0.00047397,120]
[392079765,1761137480262,-500.08,0.00047397,120]
[392079766,1761137480274,-500.0,0.00047397,120]
[392079767,1761137480284,-976.02,0.00047397,120]
[392079768,1761137480295,-1123.28,0.00047397,120]
[392079769,1761137480305,-791.42,0.00047397,120]
[392079770,1761137480315,-1380.66,0.00047397,120]
[392079771,1761137480325,-500.0,0.00047397,120]
[392079772,1761137480338,-777.97,0.00047397,120]
[392079773,1761137480349,-1069.18,0.00047397,120]
[392079774,1761137480358,-550.13,0.00047397,120]
[392079775,1761137480368,-657.62,0.00047397,120]
[392079776,1761137480378,-741.11,0.00047397,120]
[392079777,1761137480389,-546.69,0.00047397,120]
[392079778,1761137480400,-868.99,0.00047397,120]
[392079779,1761137480410,-749.46,0.00047397,120]
[392079780,1761137480420,-1632.62,0.00047397,120]
[392079781,1761137480430,-1268.92,0.00047397,120]
[392079782,1761137480440,-1515.76,0.00047397,120]
[392079783,1761137480450,-500.0,0.00047397,120]
[392079784,1761137480460,-500.0,0.00047397,120]
[392079785,1761137480469,-1021.54,0.00047397,120]
[392079786,1761137480479,-500.0,0.00047397,120]
[392079787,1761137480490,-251.23240262,0.00047421,120]
[392079788,1761137480500,-417.78101719,0.00047491,28]
[392079789,1761137480511,-1000000.0,0.000475,120]
[392079790,1761137480520,-557.12,0.00047544,120]
[392079791,1761137480533,-683.25,0.00047671,120]
[392079792,1761137480542,-668.65,0.00047671,60]
[392079793,1761137480553,-500.0,0.00047671,120]
[392079794,1761137480564,-504.28,0.00047671,120]
[392079795,1761137480576,-500.0,0.00047671,120]
[392079796,1761137480585,-678.16,0.00047671,120]
[392079797,1761137480596,-953.82,0.00047671,120]
[392079798,1761137480606,-1131.8,0.00047671,120]
[392079799,1761137480617,-538.28,0.00047671,120]
[392079800,1761137480628,-500.0,0.00047671,120]
[392079801,1761137480638,-1212.18,0.00047671,120]
[392079802,1761137480647,-971.57,0.00047671,120]
[392079803,1761137480657,-500.0,0.00047671,120]
[392079804,1761137480666,-500.0,0.00047671,120]
[392079805,1761137480676,-506.07,0.00047671,120]
[392079806,1761137480686,-500.0,0.00047671,120]
[392079807,1761137480695,-500.0,0.00047671,120]
[392079808,1761137480705,-630.24,0.00047671,120]
[392079809,1761137480714,-787.36,0.00047671,120]
[392079810,1761137480724,-654.91,0.00047671,120]
[392079811,1761137480733,-609.54,0.00047671,120]
[392079812,1761137480743,-1546.84,0.00047671,120]
[392079813,1761137480752,-512.22,0.00047671,120]
[392079814,1761137480762,-500.0,0.00047671,120]
[392079815,1761137480772,-584.83,0.00047671,120]
[392079816,1761137480785,-341.34869415,0.00047671,120]
[392079817,1761137480795,-500.0,0.00047671,12]
[392079818,1761137480805,-500.0,0.00047671,120]
[392079819,1761137480816,-500.0,0.00047671,120]
[392079820,1761137480827,-537.03,0.00047671,120]
[392079821,1761137480838,-500.0,0.00047671,120]
[392079822,1761137480848,-1006.19,0.00047671,120]
[392079823,1761137480858,-500.0,0.00047671,120]
[392079824,1761137480868,-768.78,0.00047671,120]
[392079825,1761137480877,-515.05,0.00047671,120]
[392079826,1761137480886,-888.55,0.00047671,120]
[392079827,1761137480896,-1783.82,0.00047671,120]
[392079828,1761137480906,-1004.91,0.00047671,120]
[392079829,1761137480925,-902.56,0.00047671,120]
[392079830,1761137480935,-500.0,0.00047671,120]
[392079831,1761137480946,-797.64,0.00047671,120]
[392079832,1761137480956,-727.22,0.00047671,120]
[392079833,1761137480966,-500.0,0.00047671,120]
[392079834,1761137480976,-500.0,0.00047671,120]
[392079835,1761137480986,-596.43,0.00047671,30]
[392079836,1761137480998,-839.78,0.00047671,120]
[392079837,1761137481010,-1567.44,0.00047671,120]
[392079838,1761137481022,-978.8,0.00047671,120]
[392079839,1761137481033,-550.93,0.00047671,120]
[392079840,1761137481043,-1200.44,0.00047671,120]
[392079841,1761137481053,-804.93,0.00047671,120]
[392079842,1761137481063,-739.04,0.00047671,120]
[392079843,1761137481073,-771.06,0.00047671,120]
[392079844,1761137481083,-794.03,0.00047671,120]
[392079845,1761137481092,-1137.8,0.00047671,120]
[392079846,1761137481102,-935.82,0.00047671,120]
[392079847,1761137481112,-835.83,0.00047671,120]
[392079848,1761137481122,-1199.67,0.00047671,120]
[392079849,1761137481131,-696.26,0.00047671,120]
[392079850,1761137481141,-652.36,0.00047671,120]
[392079851,1761137481151,-1077.51,0.00047671,120]
[392079852,1761137481161,-1098.31,0.00047671,120]
[392079853,1761137481171,-866.75,0.00047671,120]
[392079854,1761137481180,-500.0,0.00047671,120]
[392079855,1761137481191,-899.21,0.00047671,120]
[392079856,1761137481200,-683.69,0.00047671,120]
[392079857,1761137481210,-901.18,0.00047671,120]
[392079858,1761137481223,-1139.36,0.00047671,120]
[392079859,1761137481233,-978.62,0.00047671,120]
[392079860,1761137481243,-503.85,0.00047671,120]
[392079861,1761137481254,-1709.15,0.00047671,120]
[392079862,1761137481265,-1255.83,0.00047671,120]
[392079863,1761137481275,-598.97,0.00047671,120]
[392079864,1761137481285,-500.0,0.00047671,120]
[392079865,1761137481295,-500.0,0.00047671,120]
[392079866,1761137481306,-500.0,0.00047671,120]
[392079867,1761137481316,-913.64,0.00047671,2]
[392079868,1761137481326,-500.0,0.00047671,120]
[392079869,1761137481336,-788.16,0.00047671,120]
[392079870,1761137481347,-572.17,0.00047671,120]
[392079871,1761137481357,-1172.27,0.00047671,120]
[392079872,1761137481367,-822.33,0.00047671,120]
[392079873,1761137481378,-940.37,0.00047671,120]
[392079874,1761137481388,-1208.24,0.00047671,120]
[392079875,1761137481398,-647.81,0.00047671,120]
[392079876,1761137481408,-903.67,0.00047671,120]
[392079877,1761137481418,-701.38,0.00047671,120]
[392079878,1761137481428,-726.04,0.00047671,120]
[392079879,1761137481438,-1257.65,0.00047671,120]
[392079880,1761137481448,-1171.07,0.00047671,120]
[392079881,1761137481458,-966.41,0.00047671,120]
[392079882,1761137481469,-500.0,0.00047671,120]
[392079883,1761137481479,-838.16,0.00047671,120]
[392079884,1761137481493,-793.36,0.00047671,120]
[392079885,1761137481503,-650.24,0.00047671,120]
[392079886,1761137481513,-739.64,0.00047671,120]
[392079887,1761137481523,-1537.31,0.00047671,120]
[392079888,1761137481534,-500.0,0.00047671,120]
[392079889,1761137481544,-1957.66,0.00047671,120]
[392079890,1761137481554,-500.0,0.00047671,120]
[392079891,1761137481564,-728.44,0.00047671,120]
[392079892,1761137481575,-490.50166315,0.00047671,120]
[392079893,1761137481586,-1020.65,0.00047671,120]
[392079894,1761137481597,-500.0,0.00047671,120]
[392079895,1761137481607,-414.8918179,0.00047671,120]
[392079896,1761137481617,-500.0,0.00047671,120]
[392079897,1761137481627,-500.0,0.00047671,120]
[392079898,1761137481637,-1283.72,0.00047671,120]
[392079899,1761137481647,-507.24,0.00047671,120]
[392079900,1761137481657,-1791.81,0.00047671,120]
[392079901,1761137481667,-516.69,0.00047671,120]
[392079902,1761137481680,-774.46,0.00047671,120]
[392079903,1761137481690,-1704.96,0.00047671,120]
[392079904,1761137481700,-684.88,0.00047671,120]
[392079905,1761137481709,-903.57,0.00047671,120]
[392079906,1761137481720,-500.08,0.00047671,120]
[392079907,1761137481729,-642.99826728,0.00047671,120]
[392079908,1761137481739,-1123.28,0.00047671,120]
[392079909,1761137481749,-976.02,0.00047671,120]
[392079910,1761137481758,-791.42,0.00047671,120]
[392079911,1761137481769,-1380.66,0.00047671,120]
[392079912,1761137481783,-500.0,0.00047671,120]
[392079913,1761137481794,-777.97,0.00047671,120]
[392079914,1761137481805,-1069.18,0.00047671,120]
[392079915,1761137481815,-550.13,0.00047671,120]
[392079916,1761137481827,-657.62,0.00047671,120]
[392079917,1761137481838,-741.11,0.00047671,120]
[392079918,1761137481848,-546.69,0.00047671,120]
[392079919,1761137481859,-868.99,0.00047671,120]
[392079920,1761137481870,-749.46,0.00047671,120]